{"text_format":"1","workbook":"xlsx","n_sheets":3,"sheets":["DATOS","BAJA DOCENTE 1","BAJA DOCENTE 2"],"not_rendered":{"charts":0,"images":2,"macros":1,"external_links":0,"defined_names":52,"comments":0,"pivot_tables":0},"unopened":[],"bounds":{"document_bytes":16777216,"sheet_cells":100000,"rows_first":2000,"rows_last":500,"rows_between":2000,"halvings":0,"cell_chars":16384,"cell_head_chars":4096},"cells_cut":0,"cells_raw":0,"read":"whole","date_system":"1900"}

{"sheet":"DATOS","index":0,"n_rows":243,"n_cols":12,"rows_kept":243,"cut":false,"hidden":true,"merged":[]}
["ESCUELA","PERIODO","PERIODO DE BAJA","MOTIVO DE BAJA",null,"DIRECTOR",null,"COLEGIO DEL GOLFO","PERIODO DE INICIO","DIA","MES","AÑO"]
["INSTITUTO_GARDNER_MEXICO_AMERICANO","FEB2025","FEB2025","TERMINO DE CONTRATO",1,"MAYRA DANIELA PORTILLA VIGUERAS",1,"ALEJANDRA CARAVEO OCHOA","AGO2021","DIA","MES","AÑO"]
["IBEROAMERICA","AGO2025","AGO2025","RESCISION DE CONTRATO",2,"JOSÉ LUIS FLORES LUISJUAN",2,"ANALLELY TOLEDO GUTIERREZ","FEB2023",1,"ENERO",2025]
["NUEVA_GENERACION","FEB2026","FEB2026","CAMBIO DE RESIDENCIA",3,"MARGARITA PÉREZ ALDANA",3,"BERNAL IVAN MORALES HERRERA","AGO2023",2,"FEBRERO",2026]
["LICEO_JUAREZ","AGO2026","AGO2026","CAMBIO DE CENTRO DE TRABAJO",4,"FABIOLA DEL JESÚS CRUZ GUTIÉRREZ",4,"CARLOS ENRIQUE RECIO URDANETA","SEP2020",3,"MARZO",2027]
["COLEGIO_HISPANO_AMERICANO_MARIA_CURIE_SC","FEB2027","FEB2027","ENFERMEDAD O DISCAPACIDAD",5,"CARLOS ANTONIO SÁNCHEZ NAAL",5,"CAROLINA GUTIERREZ GUTIERREZ","AGO2024",4,"ABRIL",2028]
["BENITO_JUAREZ","AGO2027","AGO2027","MOTIVOS PERSONALES",6,"MARISOL ORTEGA ZAVALA",6,"CLAUDIA AZUCENA PEREZ PAREDES","FEB2025",5,"MAYO",2029]
["JOSE_VASCONCELOS","FEB2028","FEB2028","SUPERACION PROFESIONAL",7,"VICTOR MANUEL DIONICIO MAY",7,"DAVID MANDUJANO GARCIA","SEP2020",6,"JUNIO",2030]
["JOSE_VASCONCELOS_TURNO_MATUTINO","AGO2028","AGO2028","LICENCIA DE TRABAJO",8,"YRMA GARCIA RODRIGUEZ",8,"GUADALUPE BERENICE LOPEZ GUTIERREZ","AGO2022",7,"JULIO",2031]
["COLEGIO_DEL_GOLFO","FEB2029","FEB2029",null,9,"NARCISO DOMINGUEZ JIMENEZ",9,"HUMBERTO ALEJO FELIX","FEB2021",8,"AGOSTO",2032]
["COLEGIO_DEL_CARIBE_CARMEN","AGO2029","AGO2029",null,10,"CLAUDIA MARGARITA DEL JESUS SANCHEZ ANDRADE",10,"IRIS YESENIA GARCIA ARA","SEP2020",9,"SEPTIEMBRE",2033]
[null,"FEB2030","FEB2030",null,11,"MARIO ALBERTO JUAREZ MAGAÑA",11,"JESUS ARTURO GONZALEZ BUENFIL","FEB2023",10,"OCTUBRE",2034]
[null,null,"AGO2030",null,12,"RAYMUNDO LAZARO TORRES HERNANDEZ",12,"JOSE ANTONIO MEZETA GARCIA","SEP2020",11,"NOVIEMBRE",2035]
[null,null,null,null,13,"MAETZY BEATRIZ FLORES HERNÁNDEZ",13,"JUAN CARLOS HERRERA SANCHEZ","SEP2020",12,"DICIEMBRE"]
[null,null,null,null,14,"ESMERALDA DEL CARMEN LLERGOS MOGUEL",14,"JULIAN HEBERTO HERNANDEZ CORDOVA","AGO2021",13]
[null,null,null,null,15,"VIRGINIA ASUNCIÓN JIMÉNEZ ABREU",15,"KARINA GUADALUPE FUENTES SOBREVILLA","FEB2025",14]
[null,null,null,null,16,"SOFIA BEATRIZ BOJORQUEZ BELTRAN",16,"LOURDES MAGALY TZIU GOMEZ","FEB2021",15]
[null,null,null,null,17,"VICTOR MARRUFO MOSCOSO",17,"LUIS ALBERTO CAVAZOS SALAZAR","AGO2022",16]
[null,null,null,null,18,"RODULFO PEREZ LOPEZ",18,"LUIS DANIEL NAAL HERNANDEZ","AGO2024",17]
[null,null,null,null,null,null,19,"MARIA DEL ROSARIO ARIAS HERNANDEZ","AGO2021",18]
[null,null,null,null,null,null,20,"MARTIN HEREDIA ALVARADO","AGO2024",19]
[null,null,null,null,null,null,21,"PIERRE DEL CARMEN AYALA ZAVALA","AGO2023",20]
[null,null,null,null,null,null,22,"RICARDO OCAÑA DAMIAN","FEB2025",21]
[null,null,null,null,null,null,23,"TITO DE LOS SANTOS HERNANDEZ LOPEZ","SEP2020",22]
[null,null,null,null,null,null,24,"VICTOR HUGO SANCHEZ RODRIGUEZ","AGO2022",23]
[null,null,null,null,null,null,25,"WILLIAM ALFONSO CAHUICH RAMOS","AGO2023",24]
[null,null,null,null,null,null,null,"INSTITUTO GARDNER MÉXICO AMERICANO","PERIODO DE INICIO",25]
[null,null,null,null,null,null,1,"ALEJANDRA JAMILETT VALLADARES GOMEZ","AGO2019",26]
[null,null,null,null,null,null,2,"ANA OLIVIA MEDINA SOLIS","FEB2021",27]
[null,null,null,null,null,null,3,"CARLOS ALFONSO SOLANA NERI","AGO2019",28]
[null,null,null,null,null,null,4,"CARLOS ENRIQUE RECIO URDANETA","SEP2020",29]
[null,null,null,null,null,null,5,"CARMEN AIDA ESCOBEDO PEREZ","SEP2020",30]
[null,null,null,null,null,null,6,"CLAUDIA GAMBOA RODRIGUEZ","SEP2020",31]
[null,null,null,null,null,null,7,"CRISTINA ESPERANZA MORA LARA","FEB2024"]
[null,null,null,null,null,null,8,"DANIEL ARTURO CASANOVA GOMEZ","AGO2021"]
[null,null,null,null,null,null,9,"EDGAR PALMER LUNA","AGO2021"]
[null,null,null,null,null,null,10,"ERANDI MARIA ISABEL DIAZ PEREZ","FEB2020"]
[null,null,null,null,null,null,11,"ESTEFANIA ANTONIO ZARATE","FEB2025"]
[null,null,null,null,null,null,12,"FRANKLIN ENRIQUE PECH SOSA","AGO2022"]
[null,null,null,null,null,null,13,"GABRIEL MENDOZA ALVARADO","AGO2021"]
[null,null,null,null,null,null,14,"HUGO ALBERTO MARQUEZ MERINO","AGO2022"]
[null,null,null,null,null,null,15,"IAN ADRIEL ROSAS MALDONADO","AGO2019"]
[null,null,null,null,null,null,16,"ISAELY DEL LOURDES CABALLERO MORENO","AGO2019"]
[null,null,null,null,null,null,17,"JOSE EMILIO QUEB SUAREZ","FEB2024"]
[null,null,null,null,null,null,18,"JOSE LUIS HERNANDEZ CABRERA","SEP2020"]
[null,null,null,null,null,null,19,"JUANA ISABEL HUCHIN VAZQUEZ","FEB2025"]
[null,null,null,null,null,null,20,"JUAN CARLOS HERRERA GARCIA","SEP2020"]
[null,null,null,null,null,null,21,"JUAN JOSE BASULTO PEREZ","SEP2020"]
[null,null,null,null,null,null,22,"KARINA GUADALUPE FUENTES SOBREVILLA","FEB2020"]
[null,null,null,null,null,null,23,"LEONARDO ENRIQUE VERA LOPEZ","AGO2019"]
[null,null,null,null,null,null,24,"LUCIA GUADALUPE RUIZ SANCHEZ","AGO2019"]
[null,null,null,null,null,null,25,"LUIS ROBERTO BALAM FLORES","AGO2019"]
[null,null,null,null,null,null,26,"MARIA SOLEDAD LOPEZ PEREZ","SEP2020"]
[null,null,null,null,null,null,27,"MARISOL BAUTISTA MENECES","AGO2021"]
[null,null,null,null,null,null,28,"MAYIVE MENDEZ DOMINGUEZ","AGO2019"]
[null,null,null,null,null,null,29,"ROBERTO CARLOS CHI YAH","AGO2019"]
[null,null,null,null,null,null,30,"ROSSANA KARINA CARRILLO SANGUINO","AGO2019"]
[null,null,null,null,null,null,31,"TITO DE LOS SANTOS HERNANDEZ LOPEZ","SEP2020"]
[null,null,null,null,null,null,32,"VERONICA CONCEPCION CRUZ AYALA","AGO2021"]
[null,null,null,null,null,null,33,"VICTOR MORA CABALLERO","FEB2025"]
[null,null,null,null,null,null,34,"YESENIA JOHANA CAN AYIL","FEB2023"]
[null,null,null,null,null,null,35,"YOANIBETH JIMENEZ ALEJO","SEP2020"]
[null,null,null,null,null,null,null,"IBEROAMÉRICA","PERIODO DE INICIO"]
[null,null,null,null,null,null,1,"AMY MARTINA FERNANDA CARDENAS GOMEZ","FEB2019"]
[null,null,null,null,null,null,2,"ANEL ZAPO CRUZ","FEB2020"]
[null,null,null,null,null,null,3,"ANGELES CANSECO CERVERA","FEB2020"]
[null,null,null,null,null,null,4,"ANGELICA MARIA LOPEZ NOTARIO","FEB2019"]
[null,null,null,null,null,null,5,"ARESLI MOSQUEDA MARTINEZ","AGO2013"]
[null,null,null,null,null,null,6,"CRIMILDA EDUWIGES TREJO GARCIA","FEB2020"]
[null,null,null,null,null,null,7,"EUGENIO DAVID ABREU CASTELLANO","FEB2021"]
[null,null,null,null,null,null,8,"FLOR ALONDRA MENDEZ SANCHEZ","AGO2023"]
[null,null,null,null,null,null,9,"JAIRO DEL JESUS PEREZ ARIAS","AGO2022"]
[null,null,null,null,null,null,10,"JENNIFER DEL ROSARIO FERRAEZ CAAMAL","FEB2019"]
[null,null,null,null,null,null,11,"JENNY JULIETA AGUILAR ENSEÑAT","AGO2024"]
[null,null,null,null,null,null,12,"JORGE ALBERTO MAY MARTINEZ","AGO2013"]
[null,null,null,null,null,null,13,"JOSE ALFREDO RANGEL DEANTES","FEB2023"]
[null,null,null,null,null,null,14,"JOSE EDUARDO DEHESA MENDOZA","AGO2024"]
[null,null,null,null,null,null,15,"JOSE LUIS FLORES LUISJUAN","AGO2013"]
[null,null,null,null,null,null,16,"JOSEFA LOPEZ MARTINEZ","AGO2013"]
[null,null,null,null,null,null,17,"JULIAN HEBERTO HERNANDEZ CORDOVA","AGO2018"]
[null,null,null,null,null,null,18,"KARINA ELIZABETH HERNANDEZ RUIZ","FEB2020"]
[null,null,null,null,null,null,19,"KARINA GONZALEZ VARGAS","AGO2022"]
[null,null,null,null,null,null,20,"LAURA ELIZABETH ORTIZ GALLARDO","AGO2024"]
[null,null,null,null,null,null,21,"LAURITA HERNANDEZ GORDOM","AGO2024"]
[null,null,null,null,null,null,22,"LUIS ENRIQUE ESCALANTE MONTEJO","FEB2023"]
[null,null,null,null,null,null,23,"MARCOS ANTONIO SOLIS JIMENEZ","FEB2012"]
[null,null,null,null,null,null,24,"MARIO ALBERTO JUAREZ MAGAÑA","AGO2010"]
[null,null,null,null,null,null,25,"MARTHA MORENO BONILLA","FEB2021"]
[null,null,null,null,null,null,26,"MERARI CRISTEL POZO OSORIO","FEB2022"]
[null,null,null,null,null,null,27,"NANCY EVELIN AQUINO MUÑOZ","FEB2018"]
[null,null,null,null,null,null,28,"SIMON ANDRES DENIS TOACHE","FEB2022"]
[null,null,null,null,null,null,29,"TERESA DE JESUS VALENZUELA CASTILLO","AGO2024"]
[null,null,null,null,null,null,30,"VANESSA IVONNE BORJAS PEREZ","FEB2017"]
[null,null,null,null,null,null,31,"VANIA IRASEMA JIMENEZ ZAVALA","AGO2024"]
[null,null,null,null,null,null,32,"YONI GABRIEL GOMEZ BLANCO","FEB2018"]
[null,null,null,null,null,null,33,"YURIDIANA CRUZ MONTES DE OCA","AGO2014"]
[null,null,null,null,null,null,null,"NUEVA GENERACIÓN","PERIODO DE INICIO"]
[null,null,null,null,null,null,1,"ALEJANDRA CHABLE CORONA","FEB2019"]
[null,null,null,null,null,null,2,"ALEJANDRO PEREZ FALCONI","AGO2018"]
[null,null,null,null,null,null,3,"ANGELICA ROSARIO CARRILLO VALENCIA","AGO2017"]
[null,null,null,null,null,null,4,"ANTONIO DEL JESUS GOMEZ PEREZ","FEB2025"]
[null,null,null,null,null,null,5,"CARLOS ALONSO CARRILLO SANGUINO","FEB2023"]
[null,null,null,null,null,null,6,"DANIELA LOPEZ PLASCENCIA","FEB2019"]
[null,null,null,null,null,null,7,"EVELIN TORRES CASTRO","AGO2008"]
[null,null,null,null,null,null,8,"FRANCISCO RUIZ ESQUIVEL","AGO2019"]
[null,null,null,null,null,null,9,"GABRIEL DEL CARMEN REYES GONZALEZ","AGO2008"]
[null,null,null,null,null,null,10,"GUADALUPE ELIZABETH CASANOVA PEREZ","AGO2018"]
[null,null,null,null,null,null,11,"HESTIFEN JUAREZ LOPEZ","AGO2018"]
[null,null,null,null,null,null,12,"IVAN JESUS LOPEZ OREZA","AGO2008"]
[null,null,null,null,null,null,13,"JONATHAN ABRAHAM PIMENTEL","AGO2013"]
[null,null,null,null,null,null,14,"JOSE LUIS RAMOS CAMARA","AGO2021"]
[null,null,null,null,null,null,15,"JOSE MARIA ALCOCER JIMENEZ","FEB2023"]
[null,null,null,null,null,null,16,"JUAN MANUEL PEREZ GOMEZ","AGO2017"]
[null,null,null,null,null,null,17,"LIRIO VICTORIA MARTINEZ PEREZ","AGO2018"]
[null,null,null,null,null,null,18,"MIGUEL ANGEL CRUZ GUTIERREZ","FEB2017"]
[null,null,null,null,null,null,19,"RAYMUNDO LAZARO TORRES HERNANDEZ","FEB2018"]
[null,null,null,null,null,null,null,"LICEO JUÁREZ","PERIODO DE INICIO"]
[null,null,null,null,null,null,1,"ADRIANA BEATRIZ DEL RIO DE LA CRUZ","FEB2020"]
[null,null,null,null,null,null,2,"ANARELYS GARRIGA SOSA","FEB2016"]
[null,null,null,null,null,null,3,"ARMANDO GUILLEMOS GARCIA ORTIZ","AGO2013"]
[null,null,null,null,null,null,4,"CARLOS ADRIAN MORENO TOLENTINO","AGO2014"]
[null,null,null,null,null,null,5,"CARLOS ALONSO CARRILLO SANGUINO","AGO2017"]
[null,null,null,null,null,null,6,"CARMEN DEL JESUS MENDOZA ACOSTA","AGO2021"]
[null,null,null,null,null,null,7,"CESAR ALONSO MONTES DE OCA VALDIZON","FEB2023"]
[null,null,null,null,null,null,8,"DULCE YESENIA GALINDO REYNOSO","AGO2019"]
[null,null,null,null,null,null,9,"FABIOLA DEL JESUS CRUZ GUTIERREZ","FEB2022"]
[null,null,null,null,null,null,10,"FERNANDO ALEJANDRO TUZ CHIN","FEB2016"]
[null,null,null,null,null,null,11,"GABRIELA DEL JESUS FIGUEROA HERNANDEZ","FEB2023"]
[null,null,null,null,null,null,12,"GIMEL JESUS GONGORA GOMEZ","FEB2020"]
[null,null,null,null,null,null,13,"GIOVANNA GUADALUPE DIAZ SANTIAGO","AGO2024"]
[null,null,null,null,null,null,14,"HUGO ORLANDO EK VALLE","FEB2023"]
[null,null,null,null,null,null,15,"IRVIN RAFAEL ESTRELLA ROSAS","AGO2024"]
[null,null,null,null,null,null,16,"ISABEL CHRISTINE LASTRA GONZALEZ","AGO2019"]
[null,null,null,null,null,null,17,"JORGE MICHAEL VAZQUEZ VERA","AGO2019"]
[null,null,null,null,null,null,18,"JOSELINNE CHAN GURRÍA","FEB2025"]
[null,null,null,null,null,null,19,"JULIAN HEBERTO HERNANDEZ CORDOVA","FEB2017"]
[null,null,null,null,null,null,20,"KARLA DENNIS CORDERO GALERO","FEB2023"]
[null,null,null,null,null,null,21,"MAETZY BEATRIZ FLORES HERNANDEZ","FEB2017"]
[null,null,null,null,null,null,22,"MARIA DEL ROSARIO ARIAS HERNANDEZ","AGO2017"]
[null,null,null,null,null,null,23,"MARIA DEL SOCORRO CRUZ LOPEZ","FEB2021"]
[null,null,null,null,null,null,24,"MARIA TERESA CAMINO RODRIGUEZ","FEB2025"]
[null,null,null,null,null,null,25,"MARISOL DEL RIO DE LA CRUZ","AGO2018"]
[null,null,null,null,null,null,26,"MARLENE DEL SAGRARIO MALDONADO SANTANA","AGO2016"]
[null,null,null,null,null,null,27,"MARTIN HEREDIA ALVARADO","FEB2014"]
[null,null,null,null,null,null,28,"PERLA ESMERALDA PAGES PACHECO","FEB2020"]
[null,null,null,null,null,null,29,"SAMIA PEREZ NOVEROLA","FEB2023"]
[null,null,null,null,null,null,30,"SEBASTIAN DEL CARMEN MARTINEZ DAMIAN","AGO2024"]
[null,null,null,null,null,null,31,"YESENIA AMISADAI HERNANDEZ PECH","FEB2023"]
[null,null,null,null,null,null,null,"COLEGIO HISPANO AMERICANO MARIA CURIE SC","PERIODO DE INICIO"]
[null,null,null,null,null,null,1,"AFRICA VANESSA RODRIGUEZ JIMENEZ","FEB2020"]
[null,null,null,null,null,null,2,"ALEJANDRA MONTERO BELTRAN","AGO2018"]
[null,null,null,null,null,null,3,"ALICIA DEL CARMEN NOH DZIB","AGO2015"]
[null,null,null,null,null,null,4,"ANABELL MONTANO ARAGON","AGO2015"]
[null,null,null,null,null,null,5,"BEATRIZ ADRIANA GASPAR SOBERANES","AGO2018"]
[null,null,null,null,null,null,6,"BIBIANA RODRIGUEZ PATIÑO","AGO2019"]
[null,null,null,null,null,null,7,"CARLOS ANTONIO SANCHEZ NAAL","AGO2014"]
[null,null,null,null,null,null,8,"CARLOS JOAQUIN CERVERA SEGOVIA","AGO2015"]
[null,null,null,null,null,null,9,"DAVID GERONIMO VALENCIA","FEB2015"]
[null,null,null,null,null,null,10,"DIANA MILDRED HERNANDEZ QUERO","FEB2025"]
[null,null,null,null,null,null,11,"DULCE KARINA OLMOS RAMOS","FEB2023"]
[null,null,null,null,null,null,12,"ELVIA JOSEFINA CARDENAS CARRILLO","FEB2017"]
[null,null,null,null,null,null,13,"FELIPE GUEMES LANDERO","FEB2015"]
[null,null,null,null,null,null,14,"FERMIN ALEJANDRO BARRADAS HERNANDEZ","FEB2019"]
[null,null,null,null,null,null,15,"GLORIA ELENA DE LA HUERTA HERNANDEZ","1 PREINTER ENE25"]
[null,null,null,null,null,null,16,"HESTIFEN JUAREZ LOPEZ","FEB2017"]
[null,null,null,null,null,null,17,"ITZEL LORIA SALINAS","AGO2014"]
[null,null,null,null,null,null,18,"JOSCELYN MACIAS REYES","FEB2016"]
[null,null,null,null,null,null,19,"JUAN ALEJANDRO ESCANDON GUZMAN","FEB2022"]
[null,null,null,null,null,null,20,"JUAN LUIS PACHECO MARTIN","AGO2014"]
[null,null,null,null,null,null,21,"JULISSA ROSSANA ALEJO GONZALEZ","AGO2021"]
[null,null,null,null,null,null,22,"LANDY GUADALUPE AGUILAR BENCOMO","AGO2014"]
[null,null,null,null,null,null,23,"LILIANA CALDERON SOSA","AGO2014"]
[null,null,null,null,null,null,24,"LUIS FERNANDO YOCUPICIO CAMARA","AGO2023"]
[null,null,null,null,null,null,25,"LUIS MIGUEL PEREZ RECINOS","AGO2014"]
[null,null,null,null,null,null,26,"MANUEL IVAN CASTRO DOMINGUEZ","AGO2014"]
[null,null,null,null,null,null,27,"MARICELA SALLONARA SOLANO MORENO","AGO2024"]
[null,null,null,null,null,null,28,"MARTIN MAURICIO GOMEZ JIMENEZ","AGO2023"]
[null,null,null,null,null,null,29,"MIGUEL ANTONIO COMOM PUCH","FEB2015"]
[null,null,null,null,null,null,30,"NAOMI GALINDO MARES","FEB2023"]
[null,null,null,null,null,null,31,"PATRICIA ANDRADE SAN MARTIN","AGO2015"]
[null,null,null,null,null,null,32,"ROSANGELICA ASUNCION VAZQUEZ MORENO","FEB2019"]
[null,null,null,null,null,null,33,"ROXANA DEL ROSARIO VIANA SALAZAR","AGO2015"]
[null,null,null,null,null,null,34,"VARINIA YAZMIN VALDIVIEZO IBARRA","AGO2017"]
[null,null,null,null,null,null,null,"BENITO JUAREZ","PERIODO DE INICIO"]
[null,null,null,null,null,null,1,"ALEJANDRA BUSTOS VADILLO","FEB2021"]
[null,null,null,null,null,null,2,"ALEXANDER BARROSO DIAZ","AGO2010"]
[null,null,null,null,null,null,3,"ALFONSO ALBERTO CHAN RODRIGUEZ","AGO2008"]
[null,null,null,null,null,null,4,"ANA LAURA RICARDEZ FONZ","AGO2008"]
[null,null,null,null,null,null,5,"ANA PATRICIA CORTES PEREZ","FEB2024"]
[null,null,null,null,null,null,6,"ANTONIO DEL CARMEN GARCIA GUTIERREZ","AGO2008"]
[null,null,null,null,null,null,7,"FABIOLA DEL JESUS CRUZ GUTIERREZ","AGO2008"]
[null,null,null,null,null,null,8,"JOAQUIN JOSE PARRA PEREZ","AGO2008"]
[null,null,null,null,null,null,9,"JOSE ANTONIO MEZETA GARCIA","AGO2018"]
[null,null,null,null,null,null,10,"JOSE JESUS ACOSTA VALLADARES","AGO2008"]
[null,null,null,null,null,null,11,"KENNY XAVIER JIMENEZ CHUMBA","FEB2022"]
[null,null,null,null,null,null,12,"MANUEL ORLANDO CABAÑAS PAT","AGO2011"]
[null,null,null,null,null,null,13,"MARTHA VANESSA DAMAS HERNANDEZ","AGO2008"]
[null,null,null,null,null,null,14,"MICHAL ZAMBRANO IBAÑEZ","FEB2018"]
[null,null,null,null,null,null,15,"ROSARIO DEL JESUS COCON TEODORO","AGO2008"]
[null,null,null,null,null,null,16,"VICTOR VILLAREAL ALEGRIA","AGO2008"]
[null,null,null,null,null,null,17,"ZENAIDA AREVALO CORDOVA","FEB2025"]
[null,null,null,null,null,null,null,"JOSÉ VASCONCELOS TURNO MATUTINO","PERIODO DE INICIO"]
[null,null,null,null,null,null,1,"ALEJANDRO MORALES DIONICIO","FEB2024"]
[null,null,null,null,null,null,2,"CARLA NATALIA DIONICIO SOLANA","AGO2023"]
[null,null,null,null,null,null,3,"CARLOS GILBERTO JIMENEZ POOT","AGO2023"]
[null,null,null,null,null,null,4,"CARMINIA RAMAYO JIMENEZ","AGO2023"]
[null,null,null,null,null,null,5,"DANIELA PATRICIA BOJORQUEZ BELTRAN","AGO2024"]
[null,null,null,null,null,null,6,"DARWIN AARON BOLON DE LA CRUZ","FEB2025"]
[null,null,null,null,null,null,7,"FERNANDO MANUEL QUINO ALVAREZ","AGO2023"]
[null,null,null,null,null,null,8,"JESUS DANIEL MONTERO LASTRA","AGO2023"]
[null,null,null,null,null,null,9,"JOSE JOAQUIN MARTINEZ CEBALLOS","AGO2023"]
[null,null,null,null,null,null,10,"NEXCI YANETT CRUZ REYES","AGO2023"]
[null,null,null,null,null,null,11,"OSWALDO ROMAN CERVANTES BURGOS","AGO2023"]
[null,null,null,null,null,null,12,"PAOLA SARAY LARRAGA MASSA","AGO2024"]
[null,null,null,null,null,null,13,"SOFIA BEATRIZ BOJORQUEZ BELTRAN","AGO2023"]
[null,null,null,null,null,null,null,"JOSÉ VASCONCELOS","PERIODO DE INICIO"]
[null,null,null,null,null,null,1,"ALEJANDRA BERENICE JAUREGUI GÜEMES","FEB2023"]
[null,null,null,null,null,null,2,"CARLA NATALIA DIONICIO SOLANO","AGO2023"]
[null,null,null,null,null,null,3,"CARLOS GILBERTO JIMENEZ POOT","AGO2014"]
[null,null,null,null,null,null,4,"CARMINIA RAMAYO JIMENEZ","AGO2023"]
[null,null,null,null,null,null,5,"DANIELA PATRICIA BOJORQUEZ BELTRAN","AGO2024"]
[null,null,null,null,null,null,6,"ELIZABETH DEL JESUS GUTIERREZ NARVAEZ","AGO2016"]
[null,null,null,null,null,null,7,"FERNANDO MANUEL QUINO ALVAREZ","AGO2023"]
[null,null,null,null,null,null,8,"JESUS DANIEL MONTERO LASTRA","AGO2019"]
[null,null,null,null,null,null,9,"JORGE RUBEN HUCHIN REJON","AGO2016"]
[null,null,null,null,null,null,10,"JOSE JOAQUIN MARTINEZ CEBALLOS","AGO2023"]
[null,null,null,null,null,null,11,"MANUEL JOAQUIN GUTIERREZ GOMEZ","AGO2009"]
[null,null,null,null,null,null,12,"MARIA EUGENIA FIGUEROA CERVANTES","AGO2008"]
[null,null,null,null,null,null,13,"NEXCI YANETT CRUZ REYES","AGO2023"]
[null,null,null,null,null,null,14,"OSWALDO ROMAN CERVANTES BURGOS","AGO2023"]
[null,null,null,null,null,null,15,"PAOLA SARAY LARRAGA MASSA","AGO2024"]
[null,null,null,null,null,null,16,"SOFIA BEATRIZ BOJORQUEZ BELTRAN","FEB2014"]
[null,null,null,null,null,null,null,"COLEGIO DEL CARIBE CARMEN","PERIODO DE INICIO"]
[null,null,null,null,null,null,1,"DANIEL ALBERTO MONTORES DE LA CRUZ","FEB2025"]
[null,null,null,null,null,null,2,"DANIELA RUTH EUGENIA ARROYO CARRION","AGO2024"]
[null,null,null,null,null,null,3,"GABRIELA ZACNITET SANCHEZ JIMENEZ","FEB2025"]
[null,null,null,null,null,null,4,"IGNACIO LOPEZ REJON","AGO2023"]
[null,null,null,null,null,null,5,"IVAN JESUS LOPEZ OREZA","AGO2024"]
[null,null,null,null,null,null,6,"NORMA DELIA COBA PEREZ","AGO2024"]
[null,null,null,null,null,null,7,"PIERRE DEL CARMEN AYALA ZAVALA","AGO2024"]
[null,null,null,null,null,null,8,"RICARDO OCAÑA DAMIAN","AGO2024"]
[null,null,null,null,null,null,9,"RODULFO PEREZ LOPEZ","AGO2023"]
[null,null,null,null,null,null,10,"SERGIO VELA PAVON","AGO2023"]

{"sheet":"BAJA DOCENTE 1","index":1,"n_rows":26,"n_cols":12,"rows_kept":26,"cut":false,"hidden":false,"merged":[[17,8,17,11],[3,0,3,3],[3,4,3,11],[10,1,10,5],[11,1,11,5],[9,8,9,11],[9,1,9,5],[7,1,7,5],[7,8,7,11],[8,1,8,5],[8,8,8,11],[5,0,5,1],[24,0,24,4],[25,0,25,4],[10,8,10,11],[11,8,11,11],[12,8,12,11],[13,8,13,11],[14,8,14,11],[14,1,14,5],[15,1,15,5],[16,1,16,5],[17,1,17,5],[15,8,15,11],[16,8,16,11],[12,1,12,5],[13,1,13,5],[19,5,19,11]]}
[]
[null,null,null,null,null,null,null,null,"FECHA:","DIA","MES","AÑO"]
[]
["ESCUELA PREPARATORIA INCORPORADA:"]
[]
["PERIODO:"]
[]
["No.","NOMBRE",null,null,null,null,"PERIODO DE INICIO","PERIODO DE BAJA","MOTIVO DE LA BAJA"]
[1,null,null,null,null,null,{"$f":"_xlfn.IFNA(VLOOKUP(B9,DATOS!H:I,2,FALSE),\" \")","v":" "}]
[2,null,null,null,null,null,{"$f":"_xlfn.IFNA(VLOOKUP(B10,DATOS!H:I,2,FALSE),\" \")","v":" "}]
[3,null,null,null,null,null,{"$f":"_xlfn.IFNA(VLOOKUP(B11,DATOS!H:I,2,FALSE),\" \")","v":" "}]
[4,null,null,null,null,null,{"$f":"_xlfn.IFNA(VLOOKUP(B12,DATOS!H:I,2,FALSE),\" \")","v":" "}]
[5,null,null,null,null,null,{"$f":"_xlfn.IFNA(VLOOKUP(B13,DATOS!H:I,2,FALSE),\" \")","v":" "}]
[6,null,null,null,null,null,{"$f":"_xlfn.IFNA(VLOOKUP(B14,DATOS!H:I,2,FALSE),\" \")","v":" "}]
[7,null,null,null,null,null,{"$f":"_xlfn.IFNA(VLOOKUP(B15,DATOS!H:I,2,FALSE),\" \")","v":" "}]
[8,null,null,null,null,null,{"$f":"_xlfn.IFNA(VLOOKUP(B16,DATOS!H:I,2,FALSE),\" \")","v":" "}]
[9,null,null,null,null,null,{"$f":"_xlfn.IFNA(VLOOKUP(B17,DATOS!H:I,2,FALSE),\" \")","v":" "}]
[10,null,null,null,null,null,{"$f":"_xlfn.IFNA(VLOOKUP(B18,DATOS!H:I,2,FALSE),\" \")","v":" "}]
[]
[null,null,null,null,null,"Anexar oficio emitido por la escuela detallando el motivo de la baja."]
[]
[]
[]
[]
[]
["NOMBRE Y FIRMA DEL DIRECTOR"]

{"sheet":"BAJA DOCENTE 2","index":2,"n_rows":26,"n_cols":12,"rows_kept":26,"cut":false,"hidden":false,"merged":[[19,5,19,11],[24,0,24,4],[25,0,25,4],[15,1,15,5],[15,8,15,11],[16,1,16,5],[16,8,16,11],[17,1,17,5],[17,8,17,11],[12,1,12,5],[12,8,12,11],[13,1,13,5],[13,8,13,11],[14,1,14,5],[14,8,14,11],[9,1,9,5],[9,8,9,11],[10,1,10,5],[10,8,10,11],[11,1,11,5],[11,8,11,11],[8,1,8,5],[8,8,8,11],[3,0,3,3],[3,4,3,11],[5,0,5,1],[7,1,7,5],[7,8,7,11]]}
[]
[null,null,null,null,null,null,null,null,"FECHA:","DIA","MES","AÑO"]
[]
["ESCUELA PREPARATORIA INCORPORADA:"]
[]
["PERIODO:"]
[]
["No.","NOMBRE",null,null,null,null,"PERIODO DE INICIO","PERIODO DE BAJA","MOTIVO DE LA BAJA"]
[11,null,null,null,null,null,{"$f":"_xlfn.IFNA(VLOOKUP(B9,DATOS!H:I,2,FALSE),\" \")","v":" "}]
[12,null,null,null,null,null,{"$f":"_xlfn.IFNA(VLOOKUP(B10,DATOS!H:I,2,FALSE),\" \")","v":" "}]
[13,null,null,null,null,null,{"$f":"_xlfn.IFNA(VLOOKUP(B11,DATOS!H:I,2,FALSE),\" \")","v":" "}]
[14,null,null,null,null,null,{"$f":"_xlfn.IFNA(VLOOKUP(B12,DATOS!H:I,2,FALSE),\" \")","v":" "}]
[15,null,null,null,null,null,{"$f":"_xlfn.IFNA(VLOOKUP(B13,DATOS!H:I,2,FALSE),\" \")","v":" "}]
[16,null,null,null,null,null,{"$f":"_xlfn.IFNA(VLOOKUP(B14,DATOS!H:I,2,FALSE),\" \")","v":" "}]
[17,null,null,null,null,null,{"$f":"_xlfn.IFNA(VLOOKUP(B15,DATOS!H:I,2,FALSE),\" \")","v":" "}]
[18,null,null,null,null,null,{"$f":"_xlfn.IFNA(VLOOKUP(B16,DATOS!H:I,2,FALSE),\" \")","v":" "}]
[19,null,null,null,null,null,{"$f":"_xlfn.IFNA(VLOOKUP(B17,DATOS!H:I,2,FALSE),\" \")","v":" "}]
[20,null,null,null,null,null,{"$f":"_xlfn.IFNA(VLOOKUP(B18,DATOS!H:I,2,FALSE),\" \")","v":" "}]
[]
[null,null,null,null,null,"Anexar oficio emitido por la escuela detallando el motivo de la baja."]
[]
[]
[]
[]
[]
["NOMBRE Y FIRMA DEL DIRECTOR"]